fUSD/lending_fUSD_20241030
["ID","MTS","AMOUNT","RATE_DAILY","PERIOD"]
[341062856,1730314232346,-367.59795589,0.00034587,2]
[341062862,1730314238269,-721.732365,0.00034587,2]
[341062863,1730314238281,-1309.28,0.00034587,2]
[341062864,1730314238374,-2798.86794065,0.00034587,2]
[341062865,1730314238385,-1999.7766,0.00034587,2]
[341062866,1730314240050,-1444.42149,0.00034587,2]
[341063009,1730314242994,-610.00831096,0.00034587,2]
[341063011,1730314243006,-14648.3153375,0.00034587,2]
[341063013,1730314243015,-3463.4004,0.000347,2]
[341063015,1730314243025,-5711.0599,0.000347,2]
[341063017,1730314243034,-262.718,0.000347,2]
[341063019,1730314243043,-2096.2278,0.000347,2]
[341063021,1730314243053,-2500.0,0.000347,2]
[341063022,1730314243063,-167.08,0.00034737,2]
[341063023,1730314243072,-309.2976283,0.0003479,2]
[341063024,1730314243082,-286.4101,0.000348,2]
[341063025,1730314243091,-1939.24252358,0.000348,2]
[341063026,1730314243276,-419684.34597642,0.000348,2]
[341063027,1730314243286,-153.37,0.00034841,2]
[341063028,1730314243295,-409.74824589,0.0003489,2]
[341063029,1730314243305,-884.4239,0.000349,2]
[341063031,1730314243314,-26192.3669,0.000349,2]
[341063032,1730314243323,-737.9506,0.000349,2]
[341063033,1730314243332,-100000.0,0.000349,2]
[341063035,1730314243342,-245000.0,0.000349,2]
[341063037,1730314243351,-500.0,0.00034901,2]
[341063039,1730314243360,-200.0,0.00035126,2]
[341063041,1730314243371,-1063.35,0.00035198,2]
[341063042,1730314243380,-176.47,0.00035207,2]
[341063044,1730314243389,-18690.094185,0.000359,2]
[341063046,1730314243399,-151.0,0.000359,7]
[341063048,1730314243408,-154.308322,0.000359,2]
[341063050,1730314243418,-156.916132,0.000359,7]
[341063052,1730314243427,-156.916132,0.000359,7]
[341063054,1730314243436,-151.0,0.000359,7]
[341063056,1730314243447,-151.0,0.000359,7]
[341063058,1730314243456,-300.641846,0.000359,7]
[341063059,1730314243465,-309.29762826,0.00035947,2]
[341063061,1730314243475,-85778.40668105,0.00036,2]
[341063063,1730314243486,-3446.07240838,0.00036,2]
[341063065,1730314243496,-291.397665,0.00036,7]
[341063067,1730314243505,-156.916132,0.00036,7]
[341063069,1730314243515,-156.916132,0.00036,7]
[341063071,1730314243524,-151.34146,0.00036,7]
[341063072,1730314243534,-151.0,0.00036,7]
[341063074,1730314243543,-20573.1117512,0.00036014,2]
[341063076,1730314243552,-8018.4910203,0.00036014,2]
[341063078,1730314243561,-547.0,0.00036039,5]
[341063079,1730314243571,-161212.169486,0.00036039,7]
[341063080,1730314243580,-156.916132,0.00036039,7]
[341063081,1730314243589,-156.916132,0.00036039,7]
[341063082,1730314243599,-151.0,0.00036039,7]
[341063083,1730314243608,-500.74958656,0.00036073,5]
[341063085,1730314243617,-293.194,0.00036183,44]
[341063087,1730314243627,-167.85,0.00036328,2]
[341063089,1730314243639,-708.0,0.000364,2]
[341063091,1730314243648,-500.0,0.00036408,2]
[341063093,1730314243657,-152.0,0.00036702,4]
[341063095,1730314243667,-2110.47,0.00036799,120]
[341063097,1730314243676,-81646.00686557,0.000368,2]
[341063099,1730314243689,-412.42972532,0.000368,2]
[341063135,1730314246118,-409.6289843,0.000368,2]
[341063217,1730315056027,157.33,0.00015342,2]
[341063281,1730315432144,-1007.83,0.00033897,2]
[341063283,1730315432154,-2500.0,0.000346,2]
[341063285,1730315432164,-500.0,0.000347,2]
[341063287,1730315432174,-181496.91570127,0.000347,2]
[341063289,1730315432185,-63503.08429873,0.000347,2]
[341063291,1730315432200,-24974.6064,0.000347,2]
[341063293,1730315432210,-157.33,0.00035616,2]
[341063295,1730315432222,-297.641,0.00035635,2]
[341063297,1730315432231,-1087.0,0.00035635,2]
[341063299,1730315432240,-153.37,0.00035778,2]
[341063301,1730315432249,-23900.0,0.00035818,2]
[341063303,1730315432259,-150.0,0.00035848,7]
[341063304,1730315432268,-194.0,0.0003589,35]
[341063305,1730315432281,-12158.10097196,0.00036,2]
[341063306,1730315432290,-167.08,0.00036016,2]
[341063308,1730315432299,-640.0,0.00036151,2]
[341063310,1730315432308,-1007.83,0.00036161,2]
[341063312,1730315432317,-234.555,0.00036197,44]
[341063314,1730315432326,-783.54,0.000364,2]
[341063316,1730315432336,-7386.30083366,0.0003644,2]
[341063319,1730315432352,-6526.51710629,0.0003644,2]
[341063321,1730315432361,-12794.04250926,0.000365,2]
[341063323,1730315432371,-360.0,0.00036695,2]
[341063324,1730315432382,-7500.0,0.00036699,2]
[341063325,1730315432393,-1147.0,0.000367,55]
[341063326,1730315432405,-594.57441885,0.00036799,2]
[341063327,1730315432414,-500.0,0.00036799,2]
[341063328,1730315432424,-244.2911136,0.000368,2]
[341063329,1730315432435,-14952.8807636,0.00036807,2]
[341063330,1730315432445,-5842.9187848,0.00036832,2]
[341063331,1730315432455,-218.7013264,0.00036982,2]
[341063332,1730315432464,-166.88,0.00036996,2]
[341063333,1730315432473,-3120.80618979,0.00037,10]
[341063334,1730315432482,-347.0,0.000371,3]
[341063335,1730315432491,-775.0,0.000372,3]
[341063336,1730315432500,-1249.0,0.0003736,2]
[341063337,1730315432509,-451.0,0.0003736,2]
[341063338,1730315432518,-560.907,0.0003736,2]
[341063339,1730315432527,-1983.0,0.0003736,2]
[341063340,1730315432536,-1909.0,0.0003736,2]
[341063341,1730315432545,-3368.0,0.0003736,2]
[341063342,1730315432554,-2206.0,0.0003736,2]
[341063343,1730315432563,-811.0,0.0003736,2]
[341063344,1730315432571,-1252.0,0.0003736,2]
[341063345,1730315432580,-660.623,0.0003736,2]
[341063346,1730315432590,-26093.0534621,0.000379,2]
[341063347,1730315432599,-1209.39445116,0.00038,10]
[341063348,1730315432608,-309.29762826,0.00038156,2]
[341063349,1730315432618,-100000.0,0.00038256,2]
[341063350,1730315432630,-220.0,0.00038256,2]
[341063351,1730315432639,-300.04954165,0.000383,2]
[341063352,1730315432648,-353.14449399,0.00038346,2]
[341063353,1730315432657,-2022.53,0.00038355,120]
[341063354,1730315432666,-486.0,0.00038356,5]
[341063355,1730315432675,-151.0,0.00038356,7]
[341063356,1730315432685,-151.0,0.00038356,7]
[341063357,1730315432695,-151.0,0.00038356,7]
[341063358,1730315432704,-202.17922492,0.00038356,2]
[341063359,1730315432713,-11041.48513536,0.00038356,2]
[341063360,1730315432723,-8529.26,0.00038356,2]
[341063361,1730315432732,-196.16685313,0.00038356,2]
[341063362,1730315432741,-117463.16307831,0.00038356,2]
[341063363,1730315432780,-388.78934152,0.00038356,2]
[341063366,1730315438273,-4742.96560652,0.00038356,2]
[341063367,1730315438410,-30266.5616643,0.00038356,2]
[341063368,1730315438543,-3482.65408953,0.00038356,2]
[341063369,1730315438555,-2499.59397389,0.00038356,2]
[341063379,1730315440225,-1131.81499964,0.00038356,2]
[341063402,1730315443295,-219.4076,0.000346,2]
[341063404,1730315443305,-246.07240049,0.00038356,2]
[341063411,1730315443367,-321.20599041,0.00038356,2]
[341063625,1730315707444,325.0,0.00015,5]
[341063626,1730315708175,156.73,0.00015342,2]
[341063664,1730316632350,-1540.14980589,0.00021,2]
[341063667,1730316632360,-595.68899411,0.0003,2]
[341063668,1730316632372,-67.15959494,0.0003,2]
[341063669,1730316632382,-644.249156,0.00033655,2]
[341063670,1730316632392,-152.0,0.00034367,3]
[341063671,1730316632401,-9689.28134866,0.000346,2]
[341063672,1730316632412,-33566.32815134,0.000346,2]
[341063673,1730316632421,-1504.5239,0.000346,2]
[341063674,1730316632431,-19690.1251,0.000346,2]
[341063675,1730316632440,-15923.67687752,0.000346,2]
[341063676,1730316632579,-1956.06211217,0.000346,2]
[341063677,1730316632592,-603.03497768,0.000346,2]
[341063678,1730316632604,-915.29022052,0.000346,2]
[341063679,1730316632631,-4057.61514411,0.000346,2]
[341063680,1730316632644,-76544.320668,0.000346,2]
[341063681,1730316632654,-482.69,0.00035093,2]
[341063682,1730316632663,-943.47,0.00035093,2]
[341063683,1730316632673,-187.644,0.00036193,44]
[341063684,1730316632682,-705.19,0.000366,2]
[341063685,1730316632691,-2704.52,0.00036653,2]
[341063686,1730316632701,-1000.0,0.00036689,2]
[341063687,1730316632710,-150.0,0.00036756,7]
[341063688,1730316632719,-409.6289843,0.000368,2]
[341063690,1730316632729,-23900.0,0.00036896,2]
[341063692,1730316632738,-21955.09510639,0.00037,35]
[341063796,1730316638574,-2980.57755492,0.00037,35]
[341063847,1730316640617,-696.01000022,0.00037,35]
[341063859,1730316646546,-71866.00000004,0.00037,35]
[341063860,1730316646558,-1359.23557842,0.00037,35]
[341063861,1730316646821,-5221.5,0.00037,35]
[341063867,1730317028268,550.0,0.00015,2]
[341063868,1730317029360,600.0,0.00017,2]
[341063870,1730317030458,650.0,0.00019,2]
[341063898,1730317478675,150.0,0.0002,3]
[341063993,1730317831679,-700.0,0.00021,2]
[341063994,1730317831688,-164.95576904,0.000229,2]
[341063995,1730317831697,-750.0,0.00023,2]
[341063996,1730317831706,-1667.22401654,0.0003444,2]
[341063997,1730317831715,-927.26,0.0003454,2]
[341063999,1730317831724,-23900.0,0.00036146,2]
[341064000,1730317831734,-1133.8,0.00036393,2]
[341064001,1730317831743,-800.0,0.0003641,2]
[341064002,1730317831753,-250.0,0.0003649,2]
[341064003,1730317831764,-150.115,0.000365,45]
[341064004,1730317831773,-300.0,0.00036588,2]
[341064005,1730317831784,-30618.0155,0.00036589,2]
[341064006,1730317831793,-150.0,0.00036597,7]
[341064007,1730317831802,-634.67,0.000367,2]
[341064008,1730317831811,-1379.9507,0.00036796,2]
[341064009,1730317831821,-927.26,0.00036804,2]
[341064010,1730317831830,-200.0,0.00036903,2]
[341064011,1730317831839,-17494.80176001,0.00037,35]
[341064012,1730317831848,-326.41,0.00037001,2]
[341064013,1730317831857,-697.0,0.000371,3]
[341064014,1730317831866,-152.0,0.0003748,4]
[341064015,1730317831876,-12072.23439708,0.00038,2]
[341064016,1730317831901,-1412.39714948,0.00038,2]
[341064023,1730317837605,-3931.56895087,0.0003454,2]
[341064024,1730317837615,-18068.04704913,0.00038,2]
[341064025,1730317837879,-8306.42436913,0.00038,2]
[341064029,1730317840058,-65799.89703518,0.00038,2]
[341064031,1730317840067,-451.0,0.00038126,2]
[341064032,1730317840076,-1249.0,0.00038126,2]
[341064033,1730317840086,-557.0,0.00038126,2]
[341064034,1730317840095,-1983.0,0.00038126,2]
[341064035,1730317840104,-299.326,0.00038126,2]
[341064036,1730317840114,-1258.009,0.00038126,2]
[341064037,1730317840123,-406.77108472,0.00038126,2]
[341064046,1730317842803,-404.22891528,0.00038126,2]
[341064047,1730317842814,-1994.75059508,0.00038126,2]
[341064063,1730317845735,-211.24940492,0.00038126,2]
[341064064,1730317845744,-921.007,0.00038126,2]
[341064065,1730317845753,-7463.888,0.00038126,2]
[341064066,1730317845763,-726.573,0.00038126,2]
[341064067,1730317845773,-6065.039289,0.000382,2]
[341064068,1730317845783,-268.8784,0.00038256,2]
[341064069,1730317845796,-1265.59884609,0.00038256,2]
[341064070,1730317845809,-1234.40115391,0.00038256,2]
[341064071,1730317845819,-235.42966267,0.00038346,2]
[341064072,1730317845830,-1545.41248467,0.00038355,2]
[341064073,1730317845840,-390.90704916,0.00038356,2]
[341064074,1730317845851,-5373.17617094,0.00038356,2]
[341064075,1730317845863,-2805.54278447,0.00038356,2]
[341064076,1730317845880,-1745.7,0.00038356,2]
[341064077,1730317845892,-169871.2236121,0.00038356,2]
[341064078,1730317845920,-140154.45402065,0.00038356,2]
[341064089,1730317932379,158.11,0.00015342,2]
[341064090,1730318041808,300.0,0.00019725,2]
[341064117,1730318393292,72049.98751193,4e-05,2]
[341064119,1730318471999,156.73,0.00015342,2]
[341064125,1730318835064,550.0,0.00015,2]
[341064149,1730319031903,-893.6602403,0.0002916,2]
[341064150,1730319031915,-724.07073579,0.0002916,2]
[341064151,1730319031931,-535.00166787,0.0002916,2]
[341064152,1730319031942,-999.915646,0.0002916,2]
[341064153,1730319031955,-2638.7376355,0.0002916,2]
[341064154,1730319031967,-950.67174008,0.0002916,2]
[341064155,1730319031979,-712.8193242,0.0002916,2]
[341064156,1730319031990,-890.99,0.00035599,2]
[341064157,1730319032001,-152.0,0.00035612,3]
[341064158,1730319032012,-571.2,0.000366,2]
[341064159,1730319032022,-291.39067672,0.000371,2]
[341064160,1730319032045,-48.60932328,0.000371,2]
[341064161,1730319032056,-20597.26852598,0.000371,2]
[341064162,1730319032067,-261.12,0.00037376,2]
[341064163,1730319032078,-23900.0,0.00037394,2]
[341064164,1730319032089,-150.0,0.00037483,7]
[341064165,1730319032100,-890.99,0.00037863,2]
[341064166,1730319032110,-1079.36,0.000379,2]
[341064167,1730319032120,-1000.0,0.00037955,2]
[341064168,1730319032131,-171.73,0.00037955,50]
[341064169,1730319032141,-262.718,0.000382,2]
[341064170,1730319032151,-486.778,0.000382,2]
[341064171,1730319032161,-2096.2278,0.000382,2]
[341064172,1730319032173,-261.65762105,0.00038255,15]
[341064173,1730319032183,-300.0,0.00038271,2]
[341064174,1730319032194,-451.0,0.00038272,2]
[341064175,1730319032205,-1164.926,0.00038272,2]
[341064176,1730319032215,-834.958,0.00038272,2]
[341064178,1730319032225,-2206.0,0.00038272,2]
[341064180,1730319032236,-811.0,0.00038272,2]
[341064182,1730319032246,-32989.02451872,0.000383,2]
[341064201,1730319037844,-54107.91305479,0.000383,2]
[341064202,1730319040030,-2177.56262377,0.000383,2]
[341064203,1730319040041,-1087.22656684,0.000383,2]
[341064204,1730319040054,-402.5551218,0.000383,2]
[341064205,1730319040137,-3491.3688,0.000383,2]
[341064211,1730319043137,-2158.30407435,0.000383,2]
[341064215,1730319045982,-490.68405314,0.000383,2]
[341064216,1730319045996,-971.98922249,0.000383,2]
[341064217,1730319046008,-772.70624233,0.00038355,2]
[341064218,1730319046019,-171.18507684,0.00038355,15]
[341064272,1730319908232,145394.0,0.00016,2]
[341064273,1730319908267,1624.5613,0.00016,2]
[341064274,1730319908320,179823.45127976,0.00016,2]
[341064284,1730320054609,-171.731,0.00036949,46]
[341064285,1730320054642,-402.41,0.00039,30]
[341064286,1730320054671,-1938.26,0.00039999,120]
[341064287,1730320054697,-6956.82609568,0.0004,30]
[341064288,1730320054721,-8451.47820989,0.0004,30]
[341064289,1730320054745,-500.0,0.0004,120]
[341064290,1730320054771,-1938.26,0.00040684,120]
[341064291,1730320054795,-3017.03997102,0.000408,120]
[341064292,1730320054820,-300.0,0.00041234,31]
[341064293,1730320054845,-1938.26,0.00041369,120]
[341064294,1730320054868,-402.41,0.000414,30]
[341064295,1730320054894,-2793.59112096,0.0004187,40]
[341064296,1730320054919,-21603.005,0.000419,120]
[341064297,1730320054944,-10221.4900866,0.00042,30]
[341064298,1730320054968,-500.0,0.00042,120]
[341064299,1730320054993,-1938.26,0.00042054,120]
[341064300,1730320055018,-153.0,0.00042136,31]
[341064301,1730320055043,-153.0,0.00042136,31]
[341064302,1730320055066,-153.0,0.00042136,31]
[341064303,1730320055100,-153.0,0.00042136,31]
[341064304,1730320055124,-153.0,0.00042136,31]
[341064305,1730320055148,-153.0,0.00042136,31]
[341064306,1730320055173,-153.0,0.00042136,31]
[341064307,1730320055197,-153.0,0.00042136,31]
[341064308,1730320055220,-153.0,0.00042136,31]
[341064309,1730320055247,-153.0,0.00042136,31]
[341064310,1730320055271,-153.0,0.00042136,31]
[341064311,1730320055296,-153.0,0.00042136,31]
[341064312,1730320055323,-153.0,0.00042136,31]
[341064313,1730320055348,-153.0,0.00042136,31]
[341064314,1730320055372,-153.0,0.00042136,31]
[341064315,1730320055396,-153.0,0.00042136,31]
[341064316,1730320055421,-1938.26,0.00042739,120]
[341064317,1730320055445,-1506.4948,0.00043,30]
[341064318,1730320055469,-425.23519374,0.00043,30]
[341064319,1730320055493,-402.41,0.000432,30]
[341064320,1730320055517,-99799.0,0.000433,30]
[341064321,1730320055542,-1938.26,0.00043424,120]
[341064322,1730320055569,-560.85,0.000438,60]
[341064323,1730320055600,-888.0,0.00043835,60]
[341064324,1730320055623,-888.0,0.00043835,60]
[341064325,1730320055646,-888.0,0.00043835,60]
[341064326,1730320055669,-791.9670265,0.00043835,60]
[341064327,1730320055693,-500.0,0.00043835,30]
[341064328,1730320055716,-500.0,0.00043835,30]
[341064329,1730320055741,-538.03465416,0.00043835,30]
[341064330,1730320055766,-320.0,0.00044,120]
[341064331,1730320055789,-2043.57230025,0.00044,120]
[341064332,1730320055813,-1286.15866905,0.00044,30]
[341064333,1730320055838,-152851.62746815,0.00044,30]
[341064334,1730320055861,-2000.0,0.00044,120]
[341064335,1730320055884,-452.8,0.00044,120]
[341064336,1730320055907,-5000.0,0.00044,30]
[341064337,1730320055930,-171.52624857,0.00044,120]
[341064338,1730320055955,-500.0,0.00044,120]
[341064339,1730320055980,-150.0,0.00044,57]
[341064340,1730320056007,-1938.26,0.00044109,120]
[341064341,1730320056031,-384.25928699,0.00044116,30]
[341064342,1730320056054,-1000.0,0.0004412,120]
[341064343,1730320056079,-8833.40893799,0.00044138,30]
[341064344,1730320056103,-8833.40893799,0.00044138,30]
[341064345,1730320056126,-8833.40893799,0.00044138,30]
[341064346,1730320056151,-8833.40893799,0.00044138,30]
[341064347,1730320056212,-374.0,0.0004417,30]
[341064348,1730320056369,-397.0,0.000442,31]
[341064349,1730320056394,-215.14,0.00044238,30]
[341064350,1730320056418,-150.5,0.00044248,30]
[341064351,1730320056443,-217.0,0.0004425,30]
[341064352,1730320056468,-722.02269051,0.00044258,30]
[341064353,1730320056492,-35518.03535328,0.00044258,120]
[341064354,1730320056516,-500.0,0.00044383,120]
[341064355,1730320056541,-500.0,0.00044657,120]
[341064356,1730320056565,-402.41,0.000447,30]
[341064357,1730320056591,-1938.26,0.00044794,120]
[341064358,1730320056615,-685.77970424,0.000448,120]
[341064359,1730320056638,-15057.32405884,0.000448,120]
[341064360,1730320056661,-365.94501034,0.0004489,120]
[341064361,1730320056686,-500.0,0.00044931,120]
[341064362,1730320056709,-600.0,0.00045,120]
[341064363,1730320056733,-2000.0,0.00045,120]
[341064364,1730320056757,-500.0,0.00045,120]
[341064365,1730320056779,-150.0,0.00045,85]
[341064366,1730320056802,-9475.7468835,0.00045,120]
[341064367,1730320056827,-1860.34939078,0.00045,120]
[341064368,1730320056849,-150.50275408,0.00045,120]
[341064369,1730320056872,-192.67485614,0.00045,120]
[341064370,1730320056895,-283.98710217,0.00045,120]
[341064371,1730320056919,-560.85,0.00045,60]
[341064372,1730320056942,-4852.69,0.00045,90]
[341064373,1730320056965,-25000.0,0.00045093,40]
[341064374,1730320056987,-25000.0,0.00045093,40]
[341064375,1730320057010,-25000.0,0.00045093,40]
[341064376,1730320057034,-25000.0,0.00045093,40]
[341064377,1730320057056,-25000.0,0.00045093,40]
[341064378,1730320057079,-25000.0,0.00045093,40]
[341064379,1730320057102,-25000.0,0.00045093,40]
[341064380,1730320057125,-25000.0,0.00045093,40]
[341064381,1730320057150,-25000.0,0.00045093,40]
[341064382,1730320057174,-25000.0,0.00045093,40]
[341064383,1730320057196,-25000.0,0.00045093,40]
[341064384,1730320057218,-21588.69325777,0.00045093,40]
[341064385,1730320057243,-18734.28566853,0.00045093,40]
[341064386,1730320057265,-3694.36769452,0.00045093,40]
[341064387,1730320057288,-232.41524825,0.00045093,40]
[341064388,1730320057313,-456.67869155,0.00045205,120]
[341064389,1730320057340,-1938.26,0.00045479,120]
[341064390,1730320057364,-168.95879955,0.000457,120]
[341064391,1730320057388,-150.0,0.00046,96]
[341064392,1730320057410,-3040.33397527,0.00046,120]
[341064393,1730320057434,-10000.0,0.00046,120]
[341064394,1730320057457,-161.0,0.00046,120]
[341064395,1730320057480,-500.0,0.00046,120]
[341064396,1730320057503,-330.212384,0.00046,30]
[341064397,1730320057526,-150.0,0.00046124,120]
[341064398,1730320057550,-1938.26,0.00046164,120]
[341064399,1730320057573,-939.0,0.00046471,30]
[341064400,1730320057597,-510.95011673,0.000465,120]
[341064401,1730320057620,-500.0,0.00046575,120]
[341064402,1730320057642,-500.0,0.00046575,120]
[341064403,1730320057665,-500.0,0.00046575,120]
[341064404,1730320057687,-500.0,0.00046575,120]
[341064405,1730320057710,-500.0,0.00046575,120]
[341064406,1730320057733,-500.0,0.00046575,120]
[341064407,1730320057756,-500.0,0.00046575,120]
[341064408,1730320057782,-500.0,0.00046575,120]
[341064409,1730320057805,-500.0,0.00046575,120]
[341064410,1730320057830,-500.0,0.00046575,120]
[341064411,1730320057853,-428.72890265,0.00046575,120]
[341064412,1730320057875,-560.85,0.000466,60]
[341064413,1730320057900,-1938.26,0.00046849,120]
[341064414,1730320057924,-259.13995431,0.00047,60]
[341064415,1730320057948,-205.92138095,0.00047,120]
[341064416,1730320057971,-150.0,0.00047,120]
[341064417,1730320057994,-200.0,0.00047,108]
[341064418,1730320058019,-3000.0,0.00047,120]
[341064419,1730320058042,-10000.0,0.00047,120]
[341064420,1730320058067,-300.0,0.00047,120]
[341064421,1730320058093,-2698.49315963,0.00047,60]
[341064422,1730320058117,-10091.46,0.00047,120]
[341064423,1730320058141,-532.39994035,0.00047,120]
[341064424,1730320058168,-1938.26,0.00047533,120]
[341064425,1730320058193,-298.07423187,0.000478,120]
[341064426,1730320058215,-150.0,0.00048,120]
[341064427,1730320058241,-12689.5438661,0.00048,90]
[341064428,1730320058263,-10000.0,0.00048,120]
[341064429,1730320058285,-2000.0,0.00048,90]
[341064430,1730320058307,-150.0,0.00048,30]
[341064431,1730320058330,-11022.0,0.00048,120]
[341064432,1730320058353,-500.0,0.00048,120]
[341064433,1730320058375,-20040.69,0.00048,120]
[341064434,1730320058400,-900.0,0.00048,49]
[341064435,1730320058422,-250.0,0.00048,30]
[341064436,1730320058445,-5390.43683,0.00048088,30]
[341064437,1730320058469,-1938.26,0.00048218,120]
[341064438,1730320058492,-5390.43683,0.00048288,30]
[341064439,1730320058514,-5390.43683,0.00048488,30]
[341064440,1730320058537,-560.85,0.000485,60]
[341064441,1730320058559,-5390.43683,0.00048688,30]
[341064442,1730320058582,-1109477.86830662,0.000487,120]
[341064443,1730320058604,-400.0,0.00048784,60]
[341064444,1730320058627,-452.0,0.000488,120]
[341064445,1730320058650,-500001.0,0.000488,120]
[341064446,1730320058672,-499999.0,0.000488,120]
[341064447,1730320058695,-94211.62970984,0.000488,120]
[341064448,1730320058717,-4448.61083804,0.000488,120]
[341064449,1730320058740,-36468.68200812,0.000488,120]
[341064450,1730320058762,-346.466825,0.000488,120]
[341064451,1730320058891,-1000000.0,0.000488,120]
[341064452,1730320058916,-836609.05703295,0.000488,120]
[341064453,1730320070954,-153.0,0.00042003,31]
[341064454,1730320070978,-153.0,0.00042003,31]
[341064455,1730320071002,-153.0,0.00042003,31]
[341064456,1730320071024,-153.0,0.00042003,31]
[341064457,1730320071094,-1000.0,0.00044794,120]
[341064458,1730320071120,-163390.94296705,0.000488,120]
[341064459,1730320071143,-1828.5928566,0.000488,120]
[341064460,1730320071165,-499999.0,0.000488,120]
[341064461,1730320071189,-499999.0,0.000488,120]
[341064462,1730320071213,-25996.98050292,0.000488,120]
[341064463,1730320071236,-1084.547565,0.000488,120]
[341064464,1730320071258,-1215.00456571,0.000488,120]
[341064465,1730320071283,-54126.69819752,0.000488,120]
[341064466,1730320071307,-300.86581503,0.000488,120]
[341064467,1730320071329,-10000.0,0.0004882,120]
[341064468,1730320071354,-1540.44833965,0.00048889,120]
[341064469,1730320071377,-206.71191546,0.000489,120]
[341064470,1730320071400,-53424.8567029,0.000489,30]
[341064471,1730320071428,-500.0,0.000489,120]
[341064472,1730320071451,-197.0912468,0.000489,120]
[341064473,1730320071479,-1938.26,0.00048903,120]
[341064474,1730320071518,-3000.0,0.00049,30]
[341064475,1730320071542,-150.0,0.00049,120]
[341064476,1730320071565,-35232.5739143,0.00049,120]
[341064477,1730320071591,-587.0,0.00049,120]
[341064478,1730320071621,-4479.0,0.00049,120]
[341064479,1730320071645,-10000.0,0.00049,120]
[341064480,1730320071670,-40351.0,0.00049,30]
[341064481,1730320071696,-8077.27504063,0.00049,30]
[341064482,1730320071720,-2842.64949908,0.00049,120]
[341064483,1730320071743,-444.21,0.00049,120]
[341064484,1730320071767,-7205.12279812,0.00049,30]
[341064485,1730320071791,-500.0,0.00049,120]
[341064486,1730320071814,-900.0,0.00049,50]
[341064487,1730320071837,-31086.99408019,0.00049,120]
[341064488,1730320071860,-544.78170602,0.00049,120]
[341064489,1730320071883,-5390.43683,0.00049088,30]
[341064490,1730320071906,-341.31671129,0.00049287,120]
[341064491,1730320071928,-915.33,0.00049287,120]
[341064492,1730320071953,-915.33,0.00049287,120]
[341064493,1730320071975,-915.33,0.00049287,120]
[341064494,1730320071999,-915.33,0.00049287,120]
[341064495,1730320072022,-915.33,0.00049287,120]
[341064496,1730320072045,-915.33,0.00049287,120]
[341064497,1730320072068,-915.33,0.00049287,120]
[341064498,1730320072092,-915.33,0.00049287,120]
[341064499,1730320072115,-915.33,0.00049287,120]
[341064500,1730320072138,-915.33,0.00049287,120]
[341064501,1730320072161,-915.33,0.00049287,120]
[341064502,1730320072188,-915.33,0.00049287,120]
[341064503,1730320072210,-915.33,0.00049287,120]
[341064504,1730320072232,-915.33,0.00049287,120]
[341064505,1730320072257,-915.33,0.00049287,120]
[341064506,1730320072278,-915.33,0.00049287,120]
[341064507,1730320072302,-915.33,0.00049287,120]
[341064508,1730320072325,-915.33,0.00049287,120]
[341064509,1730320072349,-915.33,0.00049287,120]
[341064510,1730320072371,-915.33,0.00049287,120]
[341064511,1730320072395,-915.33,0.00049287,120]
[341064512,1730320072418,-915.33,0.00049287,120]